fUSD/lending_fUSD_20260415
["ID","MTS","AMOUNT","RATE_DAILY","PERIOD"]
[420514520,1776204650187,-187.78006525,0.00015251,2]
[420514521,1776204650198,-150.0,0.00015266,2]
[420514522,1776204650216,-500.0,0.00015273,2]
[420514523,1776204650231,-500.0,0.00015273,2]
[420514524,1776204650241,-240.97721981,0.00015273,2]
[420514525,1776204650272,-375.13108394,0.00015273,2]
[420514526,1776204650286,-500.0,0.00015273,2]
[420514527,1776204650322,-500.0,0.00015273,2]
[420514528,1776204650358,-500.0,0.00015273,2]
[420514529,1776204650385,-500.0,0.00015273,2]
[420514530,1776204650397,-500.0,0.00015273,2]
[420514531,1776204650417,-500.0,0.00015273,2]
[420514532,1776204650432,-500.0,0.00015273,2]
[420514533,1776204650443,-500.0,0.00015273,2]
[420514534,1776204650465,-500.0,0.00015273,2]
[420514535,1776204650479,-500.0,0.00015273,2]
[420514536,1776204650491,-500.0,0.00015273,2]
[420514537,1776204650515,-500.0,0.00015273,2]
[420514538,1776204650537,-500.0,0.00015273,2]
[420514539,1776204650547,-503.88091513,0.00015273,2]
[420514540,1776204650567,-500.0,0.00015273,2]
[420514541,1776204650580,-500.52772067,0.00015273,2]
[420514542,1776204650595,-519.34545769,0.00015273,2]
[420514543,1776204650631,-500.0,0.00015273,2]
[420514544,1776204650648,-155.0,0.00015299,2]
[420514545,1776204650688,-376967.95211209,0.000153,2]
[420514546,1776204650719,-38403.48642795,0.000153,2]
[420514547,1776204650751,-2170.86881757,0.000153,2]
[420514548,1776204652243,-261.32910505,0.00013132,2]
[420514549,1776204652265,-4249.6036004,0.000153,2]
[420514550,1776204652427,-118002.46392153,0.000153,2]
[420514551,1776204652497,-30458.85912028,0.000153,2]
[420514552,1776204652517,-379.12940536,0.000153,2]
[420514553,1776204652594,-5570.45453968,0.000153,2]
[420514565,1776205831642,-150.0,0.00013272,2]
[420514566,1776205831676,-150.0,0.000134,2]
[420514567,1776205831703,-150.0,0.00013497,2]
[420514568,1776205831744,-373.641,0.000135,2]
[420514579,1776205838454,-133.359,0.000135,2]
[420514580,1776205838492,-287.0,0.00013523,2]
[420514581,1776205838506,-79.641,0.00013523,2]
[420514582,1776205838563,-70.359,0.00013523,2]
[420514583,1776205838575,-500.0,0.00013524,2]
[420514584,1776205838592,-150.0,0.00013524,2]
[420514585,1776205838606,-500.0,0.00013524,2]
[420514586,1776205838619,-500.0,0.00013524,2]
[420514587,1776205838633,-150.0,0.00013524,2]
[420514588,1776205838648,-504.95063802,0.00013524,2]
[420514589,1776205838660,-602.65944319,0.00013524,2]
[420514590,1776205838673,-150.0,0.00013524,2]
[420514591,1776205838685,-156.37567058,0.00013524,2]
[420514592,1776205838702,-500.0,0.00013524,2]
[420514593,1776205838717,-150.0,0.00013524,2]
[420514594,1776205838727,-500.0,0.00013524,2]
[420514596,1776205838741,-500.0,0.00013524,2]
[420514598,1776205838751,-350.0,0.00013524,2]
[420514600,1776205838765,-150.0,0.00013524,2]
[420514602,1776205838779,-150.0,0.00013524,2]
[420514605,1776205838792,-150.0,0.00013524,2]
[420514607,1776205838805,-500.0,0.00013524,2]
[420514609,1776205838823,-500.0,0.00013524,2]
[420514611,1776205838843,-300.0,0.00013524,2]
[420514613,1776205838858,-500.0,0.00013524,2]
[420514615,1776205838880,-150.0,0.00013524,2]
[420514617,1776205838901,-500.0,0.00013524,2]
[420514619,1776205838916,-150.0,0.00013524,2]
[420514621,1776205838938,-217.90466446,0.00013524,2]
[420514623,1776205838947,-150.0,0.00013524,2]
[420514625,1776205838959,-253.28980494,0.00013524,2]
[420514627,1776205838977,-150.0,0.00013524,2]
[420514629,1776205838989,-150.0,0.00013524,2]
[420514630,1776205839002,-150.0,0.00013524,2]
[420514633,1776205839023,-150.0,0.00013524,2]
[420514635,1776205839034,-150.0,0.00013524,2]
[420514637,1776205839046,-500.0,0.00013562,2]
[420514639,1776205839059,-500.0,0.00013562,2]
[420514641,1776205839076,-500.0,0.00013562,2]
[420514643,1776205839086,-364.6535985,0.00013562,2]
[420514645,1776205839101,-254.86309859,0.00013562,2]
[420514647,1776205839119,-500.0,0.00013562,2]
[420514649,1776205839132,-500.0,0.00013562,2]
[420514651,1776205839142,-500.0,0.00013562,2]
[420514653,1776205839160,-500.0,0.00013562,2]
[420514654,1776205839174,-500.0,0.00013562,2]
[420514656,1776205839185,-500.0,0.00013562,2]
[420514658,1776205839212,-500.0,0.00013562,2]
[420514660,1776205839223,-500.0,0.00013562,2]
[420514662,1776205839242,-500.0,0.00013562,2]
[420514664,1776205839262,-500.0,0.00013562,2]
[420514666,1776205839275,-500.0,0.00013562,2]
[420514668,1776205839291,-500.0,0.00013562,2]
[420514670,1776205839303,-622.00388739,0.00013562,2]
[420514672,1776205839321,-150.0,0.000136,2]
[420514673,1776205839331,-495.0,0.00013618,2]
[420514675,1776205839347,-495.0,0.00013618,2]
[420514678,1776205839368,-200.0,0.00013637,2]
[420514680,1776205839381,-1600.0,0.00013644,2]
[420514681,1776205839394,-1082.2,0.00013661,2]
[420514684,1776205839414,-500.0,0.00013698,2]
[420514686,1776205839426,-166.66,0.00013699,2]
[420514688,1776205839437,-463.57,0.00013699,2]
[420514690,1776205839457,-200.0,0.00013699,2]
[420514692,1776205839473,-4198.24685605,0.00013699,2]
[420514693,1776205839494,-1976.39652943,0.00013699,2]
[420514695,1776205839510,-397.25763086,0.00013699,2]
[420514697,1776205839521,-1663.3,0.00013709,2]
[420514700,1776205839546,-151.0,0.0001379,2]
[420514701,1776205839557,-200.0,0.0001379,2]
[420514703,1776205839566,-151.0,0.0001379,2]
[420514705,1776205839590,-151.0,0.0001379,2]
[420514707,1776205839601,-151.0,0.0001379,2]
[420514709,1776205839611,-151.0,0.0001379,2]
[420514711,1776205839628,-151.0,0.0001379,2]
[420514713,1776205839643,-151.0,0.0001379,2]
[420514715,1776205839653,-500.0,0.0001379,2]
[420514717,1776205839666,-500.0,0.0001379,2]
[420514719,1776205839677,-500.0,0.0001379,2]
[420514721,1776205839695,-500.0,0.0001379,2]
[420514724,1776205839706,-500.0,0.0001379,2]
[420514726,1776205839716,-151.0,0.0001379,2]
[420514727,1776205839725,-151.0,0.0001379,2]
[420514729,1776205839741,-181.41998451,0.0001379,2]
[420514732,1776205839752,-1264.0,0.00013798,2]
[420514734,1776205839762,-926.0,0.00013798,2]
[420514736,1776205839772,-1218.0,0.00013798,2]
[420514738,1776205839782,-1047.0,0.00013798,2]
[420514740,1776205839793,-166.66,0.00013836,2]
[420514742,1776205839803,-578.20924308,0.00013836,2]
[420514744,1776205839812,-1428.38747117,0.00013836,2]
[420514746,1776205839823,-721.12765535,0.00013836,2]
[420514748,1776205839833,-200.0,0.00013836,2]
[420514750,1776205839843,-500.0,0.00013836,2]
[420514752,1776205839852,-200.0,0.00013836,2]
[420514754,1776205839862,-215.09535391,0.00013836,2]
[420514756,1776205839873,-209.40437684,0.00013836,2]
[420514758,1776205839884,-500.0,0.00013836,2]
[420514760,1776205839893,-500.0,0.00013836,2]
[420514762,1776205839903,-500.0,0.00013836,2]
[420514763,1776205839912,-500.0,0.00013836,2]
[420514765,1776205839922,-500.0,0.00013836,2]
[420514767,1776205839932,-500.0,0.00013836,2]
[420514769,1776205839941,-500.0,0.00013836,2]
[420514771,1776205839951,-743.50770149,0.00013836,2]
[420514810,1776205840371,-500.0,0.00013836,2]
[420514813,1776205840402,-500.0,0.00013836,2]
[420514815,1776205840426,-500.0,0.00013836,2]
[420514818,1776205840443,-500.0,0.00013836,2]
[420514819,1776205840478,-174.61919141,0.00013836,2]
[420514821,1776205840492,-151.0,0.00013836,2]
[420514824,1776205840534,-300.23240325,0.00013836,2]
[420514825,1776205840567,-235.75327194,0.00013836,2]
[420514828,1776205840589,-244.476143,0.00013836,2]
[420514830,1776205840623,-253.52176029,0.00013836,2]
[420514831,1776205840673,-262.90206542,0.00013836,2]
[420514833,1776205840718,-272.62944185,0.00013836,2]
[420514835,1776205840761,-282.71673119,0.00013836,2]
[420514838,1776205840791,-293.17725025,0.00013836,2]
[420514840,1776205840820,-304.02480851,0.00013836,2]
[420514842,1776205840834,-315.27372642,0.00013836,2]
[420514844,1776205840873,-326.9388543,0.00013836,2]
[420514846,1776205840892,-450.58594682,0.00013836,2]
[420514848,1776205840927,-192.64,0.00013836,2]
[420514850,1776205840939,-500.0,0.00013843,2]
[420514851,1776205840966,-500.1303098,0.00013843,2]
[420514854,1776205840978,-500.0,0.00013843,2]
[420514855,1776205841004,-500.0,0.00013891,2]
[420514857,1776205841016,-151.0,0.00013891,2]
[420514860,1776205841031,-157.54008316,0.00013913,2]
[420514861,1776205841046,-500.0,0.00013913,2]
[420514863,1776205841075,-500.0,0.00013946,2]
[420514865,1776205841087,-151.0,0.00013946,2]
[420514867,1776205841097,-166.66,0.00013973,2]
[420514869,1776205841114,-1000.0,0.00013979,2]
[420514871,1776205841131,-160.0,0.00013992,2]
[420514874,1776205841142,-500.0,0.00014001,2]
[420514876,1776205841157,-151.0,0.00014001,2]
[420514878,1776205841170,-166.73,0.00014049,2]
[420514879,1776205841180,-500.0,0.00014056,2]
[420514881,1776205841189,-151.0,0.00014056,2]
[420514883,1776205841202,-166.66,0.0001411,2]
[420514885,1776205841215,-192.64,0.0001411,2]
[420514887,1776205841224,-500.0,0.00014111,2]
[420514889,1776205841239,-151.0,0.00014111,2]
[420514891,1776205841249,-500.57038075,0.0001412,2]
[420514893,1776205841259,-227.54240787,0.0001412,2]
[420514896,1776205841269,-500.0,0.00014166,2]
[420514898,1776205841283,-151.0,0.00014166,2]
[420514900,1776205841295,-500.0,0.00014221,2]
[420514902,1776205841305,-151.0,0.00014221,2]
[420514904,1776205841314,-166.66,0.00014247,2]
[420514906,1776205841326,-500.0,0.00014276,2]
[420514908,1776205841336,-151.0,0.00014276,2]
[420514910,1776205841347,-1000.0,0.00014294,2]
[420514912,1776205841357,-500.0,0.00014331,2]
[420514914,1776205841368,-151.0,0.00014331,2]
[420514916,1776205841377,-150.0,0.00014334,2]
[420514918,1776205841387,-166.66,0.00014384,2]
[420514920,1776205841397,-463.57,0.00014384,2]
[420514922,1776205841407,-1481.23780761,0.00014384,2]
[420514924,1776205841417,-200.0,0.00014384,2]
[420514926,1776205841428,-771.01748645,0.00014384,2]
[420514928,1776205841438,-181.08010149,0.00014384,2]
[420514930,1776205841448,-192.65,0.00014384,2]
[420514932,1776205841459,-500.0,0.00014386,2]
[420514934,1776205841469,-151.0,0.00014386,2]
[420514936,1776205841480,-1000.0,0.00014446,2]
[420514938,1776205841489,-2470.1886,0.00014499,2]
[420514940,1776205841500,-44662.71931003,0.00014499,2]
[420514950,1776205841596,-4730.75089867,0.00014499,2]
[420514954,1776205841621,-3850.05923139,0.00014499,2]
[420514956,1776205841635,-3361.72068955,0.00014499,2]
[420514958,1776205841647,-336.64042432,0.00014499,2]
[420515044,1776205842819,-261.98000005,0.00013798,2]
[420515046,1776205842841,-1086.01999995,0.00013798,2]
[420515048,1776205842854,-1372.38374604,0.00014499,2]
[420515050,1776205842863,-1200.0,0.00014582,2]
[420515052,1776205842885,-2075.59466924,0.00014582,2]
[420515062,1776205843024,-124.40533076,0.00014582,2]
[420515064,1776205843034,-2500.0,0.00014599,2]
[420515066,1776205843047,-2500.0,0.00014599,2]
[420515068,1776205843062,-729.63107493,0.00014599,2]
[420515073,1776205843113,-1770.36892507,0.00014599,2]
[420515075,1776205843123,-1332.15740941,0.00014599,2]
[420515079,1776205843157,-1167.84259059,0.00014599,2]
[420515081,1776205843167,-2500.0,0.00014599,2]
[420515083,1776205843180,-300.0,0.00014599,2]
[420515085,1776205843193,-300.0,0.00014599,2]
[420515087,1776205843205,-300.0,0.00014599,2]
[420515089,1776205843217,-300.0,0.00014599,2]
[420515091,1776205843230,-293.57781544,0.00014628,2]
[420515093,1776205843246,-190.779,0.000148,2]
[420515095,1776205843256,-150.0,0.00014821,2]
[420515097,1776205843274,-150.0,0.00014895,2]
[420515099,1776205843285,-160.497406,0.00014896,7]
[420515101,1776205843297,-500.0,0.00014902,2]
[420515103,1776205843317,-500.0,0.00014902,2]
[420515105,1776205843331,-150.0,0.00014903,2]
[420515107,1776205843344,-250.0,0.00014903,2]
[420515109,1776205843365,-150.0,0.00014903,2]
[420515111,1776205843379,-150.0,0.00014903,2]
[420515113,1776205843394,-150.0,0.00014903,2]
[420515115,1776205843423,-150.0,0.00014903,2]
[420515117,1776205843447,-150.0,0.00014903,2]
[420515119,1776205843467,-166.10582343,0.00014903,2]
[420515121,1776205843485,-183.69060593,0.00014903,2]
[420515123,1776205843519,-150.0,0.00014903,2]
[420515125,1776205843553,-150.0,0.00014903,2]
[420515127,1776205843619,-150.0,0.00014903,2]
[420515129,1776205843654,-150.0,0.00014903,2]
[420515131,1776205843676,-500.0,0.00014903,2]
[420515134,1776205843694,-150.0,0.00014903,2]
[420515135,1776205843706,-500.0,0.00014903,2]
[420515138,1776205843727,-500.0,0.00014903,2]
[420515140,1776205843737,-197.49970056,0.00014903,2]
[420515142,1776205843749,-500.0,0.00014903,2]
[420515144,1776205843764,-500.0,0.00014903,2]
[420515146,1776205843780,-500.0,0.00014903,2]
[420515149,1776205843790,-500.0,0.00014903,2]
[420515150,1776205843805,-500.0,0.00014903,2]
[420515152,1776205843818,-500.0,0.00014903,2]
[420515155,1776205843830,-500.0,0.00014903,2]
[420515157,1776205843840,-500.0,0.00014903,2]
[420515159,1776205843850,-150.0,0.00014903,2]
[420515162,1776205843864,-200.0,0.00014932,2]
[420515165,1776205843873,-187.78006525,0.00014932,2]
[420515167,1776205843884,-150.0,0.00014933,2]
[420515169,1776205843893,-507.0,0.00014946,3]
[420515171,1776205843909,-3477.32626926,0.00014967,2]
[420515173,1776205843919,-2837.0,0.00014974,2]
[420515175,1776205843929,-1888.192,0.00014984,2]
[420515177,1776205843939,-3477.32626919,0.00014993,2]
[420515179,1776205843953,-529.19762019,0.00014994,2]
[420515181,1776205843963,-176.919,0.00014994,2]
[420515183,1776205843974,-150.0,0.00014998,2]
[420515185,1776205843983,-300.0,0.00015,2]
[420515187,1776205843994,-171.1501673,0.00015,2]
[420515189,1776205844005,-5000.0,0.00015,2]
[420515191,1776205844015,-242.35111501,0.00015,2]
[420515193,1776205844025,-1373.00671707,0.00015019,2]
[420515195,1776205844040,-2104.31955212,0.00015019,2]
[420515197,1776205844051,-1424.33228852,0.00015045,2]
[420515202,1776205844086,-2052.99398067,0.00015045,2]
[420515204,1776205844097,-463.57,0.00015068,2]
[420515206,1776205844107,-258.17,0.00015068,2]
[420515208,1776205844116,-3477.32626919,0.00015071,2]
[420515210,1776205844127,-308.60154884,0.00015073,2]
[420515212,1776205844137,-500.0,0.00015073,2]
[420515214,1776205844147,-500.0,0.00015073,2]
[420515216,1776205844157,-500.0,0.00015073,2]
[420515218,1776205844167,-501.83833659,0.00015073,2]
[420515220,1776205844177,-500.0,0.00015073,2]
[420515223,1776205844187,-500.0,0.00015073,2]
[420515225,1776205844197,-500.0,0.00015073,2]
[420515227,1776205844207,-500.0,0.00015073,2]
[420515229,1776205844216,-500.0,0.00015073,2]
[420515231,1776205844228,-500.87577669,0.00015073,2]
[420515233,1776205844238,-500.0,0.00015073,2]
[420515235,1776205844248,-528.25616743,0.00015073,2]
[420515237,1776205844258,-500.0,0.00015073,2]
[420515239,1776205844270,-500.0,0.00015073,2]
[420515241,1776205844280,-500.20767084,0.00015073,2]
[420515243,1776205844292,-165.21977081,0.00015073,2]
[420515245,1776205844302,-500.0,0.00015073,2]
[420515247,1776205844315,-500.0,0.00015073,2]
[420515250,1776205844325,-500.0,0.00015073,2]
[420515252,1776205844335,-193.05633135,0.00015073,2]
[420515254,1776205844345,-500.0,0.00015073,2]
[420515256,1776205844359,-500.0,0.00015073,2]
[420515258,1776205844369,-500.20892308,0.00015073,2]
[420515260,1776205844379,-501.00588837,0.00015073,2]
[420515262,1776205844389,-500.32940014,0.00015073,2]
[420515264,1776205844402,-500.0,0.00015073,2]
[420515266,1776205844414,-288.40469029,0.00015073,2]
[420515268,1776205844423,-500.0,0.00015073,2]
[420515270,1776205844433,-163.25654689,0.00015073,2]
[420515272,1776205844446,-501.49895413,0.00015073,2]
[420515274,1776205844459,-500.0,0.00015073,2]
[420515276,1776205844470,-164.556597,0.00015073,2]
[420515278,1776205844480,-166.99722939,0.00015073,2]
[420515281,1776205844501,-499.8818698,0.00015073,2]
[420515282,1776205844510,-500.0,0.00015073,2]
[420515284,1776205844522,-500.0,0.00015073,2]
[420515286,1776205844540,-500.0,0.00015073,2]
[420515289,1776205844552,-150.0,0.00015086,2]
[420515291,1776205844567,-222.8992196,0.0001509,2]
[420515293,1776205844591,-3477.32626919,0.00015096,2]
[420515295,1776205844629,-151.0,0.00015097,2]
[420515297,1776205844741,-151.0,0.00015097,2]
[420515299,1776205844949,-150.0,0.00015099,2]
[420515301,1776205845080,-576.18315994,0.00015099,2]
[420515303,1776205845103,-500.0,0.00015099,2]
[420515304,1776205845127,-184.9327923,0.00015099,2]
[420515307,1776205845139,-500.0,0.00015099,2]
[420515309,1776205845164,-507.519432,0.00015099,2]
[420515311,1776205845181,-256.13931275,0.00015099,2]
[420515313,1776205845194,-1426.0,0.000151,5]
[420515315,1776205845228,-250.0,0.000151,2]
[420515317,1776205845246,-148948.31075509,0.000151,2]
[420515320,1776205845274,-5315.1,0.000151,2]
[420515322,1776205845309,-681.76212011,0.000151,2]
[420515324,1776205845334,-1250.10506771,0.000151,2]
[420515337,1776205845497,-3909.77402337,0.000151,2]
[420515339,1776205845509,-1203.55824115,0.000151,2]
[420515341,1776205845522,-400.2,0.000151,2]
[420515344,1776205845538,-413.02336592,0.000151,2]
[420515418,1776205846798,-580.13076346,0.000151,2]
[420515422,1776205846825,-387.372,0.000151,2]
[420515424,1776205846837,-2275790.99617976,0.000151,2]
[420515426,1776205846851,-6131.29197533,0.000151,2]
[420515427,1776205846863,-54988.3755081,0.000151,2]
[420515428,1776205846873,-1528.0,0.000151,2]
[420515429,1776205846882,-292.913812,0.000151,2]
[420515430,1776205846892,-1096.57257202,0.000151,2]
[420515431,1776205846902,-614.15981134,0.000151,2]
[420515432,1776205846912,-3477.32626919,0.00015122,2]
[420515433,1776205846931,-242.35111495,0.00015129,2]
[420515434,1776205846943,-7292.73759739,0.00015131,2]
[420515435,1776205846954,-960.72584676,0.00015131,2]
[420515436,1776205846965,-3477.32626919,0.00015148,2]
[420515437,1776205846975,-372.0,0.00015166,2]
[420515439,1776205846985,-164.7686,0.0001517,2]
[420515441,1776205846995,-500.0,0.00015173,2]
[420515443,1776205847004,-500.0,0.00015173,2]
[420515445,1776205847013,-500.0,0.00015173,2]
[420515447,1776205847023,-500.0,0.00015173,2]
[420515449,1776205847033,-162.73987188,0.00015173,2]
[420515451,1776205847043,-500.0,0.00015173,2]
[420515453,1776205847053,-500.0,0.00015173,2]
[420515456,1776205847066,-500.0,0.00015173,2]
[420515457,1776205847076,-3477.32626919,0.00015174,2]
[420515460,1776205847087,-372.0,0.00015175,2]
[420515462,1776205847099,-500.0,0.00015177,2]
[420515464,1776205847111,-500.0,0.00015178,2]
[420515466,1776205847121,-500.0,0.00015178,2]
[420515468,1776205847131,-200.0,0.00015178,2]
[420515470,1776205847143,-495.0,0.00015188,2]
[420515472,1776205847153,-495.0,0.00015188,2]
[420515474,1776205847163,-495.0,0.00015188,2]
[420515476,1776205847173,-151.0,0.00015197,2]
[420515478,1776205847187,-1000.0,0.000152,2]
[420515480,1776205847197,-36839.89438362,0.000152,2]
[420515482,1776205847212,-11604.1708,0.000152,2]
[420515484,1776205847225,-2578.14514686,0.000152,2]
[420515487,1776205847241,-123254.54800027,0.000152,2]
[420515489,1776205847256,-1917.44669274,0.000152,2]
[420515906,1776207020601,150.0,0.00012547,120]
[420515910,1776207032144,-305.0,0.00011199,2]
[420515911,1776207032166,-321.10704283,0.000112,2]
[420515912,1776207032191,-843.61295717,0.000112,2]
[420515913,1776207032210,-291.18,0.000112,2]
[420515914,1776207032227,-291.18,0.000112,2]
[420515915,1776207032244,-291.18,0.000112,2]
[420515916,1776207032258,-291.18,0.000112,2]
[420515917,1776207032282,-250.0,0.00012319,2]
[420515919,1776207032299,-150.0,0.00012547,2]
[420515921,1776207032316,-366.72749678,0.0001258,2]
[420515922,1776207032334,-133.27250322,0.0001258,2]
[420515923,1776207032346,-152.0,0.00012657,7]
[420515924,1776207032371,-500.0,0.00012766,2]
[420515925,1776207032385,-584.77,0.00012792,2]
[420515926,1776207032400,-2000.0,0.00012982,2]
[420515927,1776207032413,-150.0,0.00013,2]
[420515928,1776207032422,-1000.0,0.00013042,2]
[420515929,1776207032434,-1510.554,0.00013042,2]
[420515930,1776207032449,-176.919,0.00013042,2]
[420515931,1776207032459,-151.0,0.00013092,2]
[420515932,1776207032469,-153.67464299,0.00013325,2]
[420515933,1776207032482,-157.54008316,0.00013373,2]
[420515934,1776207032496,-500.0,0.00013373,2]
[420515935,1776207032506,-500.1303098,0.00013373,2]
[420515936,1776207032518,-500.0,0.00013373,2]
[420515937,1776207032530,-500.0,0.00013397,2]
[420515938,1776207032539,-500.0,0.00013397,2]
[420515939,1776207032549,-150.0,0.00013397,2]
[420515940,1776207032559,-282985.11292705,0.00013398,2]
[420515941,1776207032574,-3636.70979748,0.00013398,2]
[420515942,1776207032586,-305.50914048,0.00013398,2]
[420515943,1776207032598,-322.59321388,0.00013398,2]
[420515944,1776207032614,-12880.97863727,0.00013398,2]
[420515945,1776207032638,-500.91157275,0.00013398,2]
[420515946,1776207032650,-462.11065713,0.00013398,2]
[420515947,1776207032664,-300.0,0.00013398,2]
[420515968,1776207038715,-293.44989871,0.00013325,2]
[420515970,1776207038736,-1536.03095484,0.00013398,2]
[420515972,1776207038762,-308.5174995,0.00013398,2]
[420515975,1776207038798,-2603.83148825,0.00013398,2]
[420515979,1776207038955,-29971.01751137,0.00013398,2]
[420515981,1776207039065,-3240.0,0.00013425,2]
[420515983,1776207039107,-6431.2659,0.00013498,2]
[420515985,1776207039149,-7211.7799,0.00013498,2]
[420515987,1776207039172,-2500.0,0.00013498,2]
[420515989,1776207039182,-2470.1886,0.00013498,2]
[420515991,1776207039193,-1956.99613273,0.00013498,2]
[420515993,1776207039203,-151.0,0.00013595,2]
[420515995,1776207039220,-500.0,0.00013597,2]
[420515997,1776207039230,-167.90566516,0.00013597,2]
[420515999,1776207039245,-183.96215596,0.00013597,2]
[420516001,1776207039254,-502.63195512,0.00013597,2]
[420516003,1776207039277,-500.0,0.00013597,2]
[420516006,1776207039289,-607.82651995,0.00013597,2]
[420516007,1776207039299,-31369.07930119,0.00013598,2]
[420516008,1776207039313,-903.93718342,0.00013598,2]
[420516009,1776207039337,-943.95867498,0.00013598,2]
[420516010,1776207039362,-30311.55516234,0.00013598,2]
[420516011,1776207039380,-998.70180433,0.00013598,2]
[420516012,1776207039398,-206961.47587374,0.00013598,2]
[420516013,1776207039411,-4915.4821,0.00013598,2]
[420516015,1776207039421,-5000.0,0.00013598,2]
[420516016,1776207039430,-495.0,0.0001361,2]
[420516017,1776207039441,-495.0,0.0001361,2]
[420516018,1776207039455,-500.57038075,0.00013673,2]
[420516019,1776207039466,-227.54240787,0.00013673,2]
[420516020,1776207039475,-1956.99613273,0.00013687,2]
[420516021,1776207039486,-151.0,0.0001369,2]
[420516022,1776207039499,-151.0,0.0001369,2]
[420516023,1776207039511,-200.0,0.0001369,2]
[420516024,1776207039522,-151.0,0.0001369,2]
[420516025,1776207039534,-151.0,0.0001369,2]
[420516026,1776207039547,-151.0,0.0001369,2]
[420516027,1776207039559,-151.0,0.0001369,2]
[420516028,1776207039570,-151.0,0.0001369,2]
[420516029,1776207039582,-500.0,0.0001369,2]
[420516030,1776207039595,-500.0,0.0001369,2]
[420516031,1776207039610,-500.0,0.0001369,2]
[420516032,1776207039619,-500.0,0.0001369,2]
[420516033,1776207039641,-500.0,0.0001369,2]
[420516034,1776207039654,-151.0,0.00013695,2]
[420516035,1776207039665,-151.0,0.00013695,2]
[420516036,1776207039679,-179.29751892,0.00013697,2]
[420516037,1776207039694,-150.0,0.00013697,2]
[420516038,1776207039711,-500.0,0.00013698,2]
[420516039,1776207039724,-1528.0,0.00013699,2]
[420516040,1776207039746,-1000.0,0.00013703,2]
[420516041,1776207039767,-1608.12,0.00013717,2]
[420516042,1776207039777,-1956.99613273,0.00013876,2]
[420516043,1776207039799,-1331.0,0.00013897,2]
[420516044,1776207039814,-2475.033,0.00013897,2]
[420516046,1776207039823,-1047.0,0.00013897,2]
[420516047,1776207039854,-622.0,0.00013897,2]
[420516048,1776207039865,-1348.0,0.00013897,2]
[420516049,1776207039892,-1264.0,0.00013897,2]
[420516050,1776207039904,-3777.0,0.00013897,2]
[420516051,1776207039913,-416.0,0.00013897,2]
[420516052,1776207039939,-578.20924308,0.00013909,2]
[420516053,1776207039949,-1428.38747117,0.00013909,2]
[420516054,1776207039958,-500.0,0.00013909,2]
[420516055,1776207039984,-721.12765535,0.00013909,2]
[420516056,1776207039995,-215.09535391,0.00013909,2]
[420516057,1776207040007,-200.0,0.00013909,2]
[420516058,1776207040027,-151.0,0.00013909,2]
[420516059,1776207040040,-209.40437684,0.00013909,2]
[420516060,1776207040051,-743.50770149,0.00013909,2]
[420516061,1776207040076,-200.0,0.00013909,2]
[420516062,1776207040085,-174.61919141,0.00013909,2]
[420516063,1776207040100,-235.75327194,0.00013909,2]
[420516064,1776207040118,-244.476143,0.00013909,2]
[420516065,1776207040137,-500.0,0.00013909,2]
[420516066,1776207040159,-253.52176029,0.00013909,2]
[420516067,1776207040175,-500.0,0.00013909,2]
[420516068,1776207040187,-262.90206542,0.00013909,2]